lending/lending_fUSD_20240512
["ID","MTS","AMOUNT","RATE_DAILY","PERIOD"]
[326908551,1715556646274,-1151.92,0.00012899,2]
[326908552,1715556646284,-1164.35,0.00012899,2]
[326908553,1715556646293,-1151.92,0.00012899,2]
[326908554,1715556646302,-1164.35,0.00012899,2]
[326908555,1715556646311,-1164.35,0.00012899,2]
[326908556,1715556646320,-1164.35,0.00012899,2]
[326908557,1715556646330,-1164.35,0.00012899,2]
[326908558,1715556646339,-2790.33,0.00012899,2]
[326908559,1715556646348,-2790.33,0.00012899,2]
[326908560,1715556646357,-2790.33,0.00012899,2]
[326908561,1715556646367,-2790.33,0.00012899,2]
[326908562,1715556646377,-2790.33,0.00012899,2]
[326908563,1715556646386,-166.19674,0.00012899,2]
[326908564,1715556646396,-2790.33,0.00012899,2]
[326908565,1715556646405,-151.0,0.00012899,2]
[326908566,1715556646416,-166.19674,0.00012899,2]
[326908567,1715556646425,-500.0,0.00012899,2]
[326908568,1715556646439,-500.0,0.00012899,2]
[326908569,1715556646448,-500.0,0.00012899,2]
[326908570,1715556646458,-500.0,0.00012899,2]
[326908571,1715556646469,-500.0,0.00012899,2]
[326908572,1715556646478,-500.0,0.00012899,2]
[326908573,1715556646488,-151.0,0.00012899,2]
[326908574,1715556646497,-151.0,0.00012899,2]
[326908575,1715556646508,-682.48,0.00012899,2]
[326908576,1715556646519,-682.48,0.00012899,2]
[326908577,1715556646528,-6489.63,0.00012899,2]
[326908578,1715556646537,-682.48,0.00012899,2]
[326908579,1715556646546,-6489.63,0.00012899,2]
[326908580,1715556646555,-682.48,0.00012899,2]
[326908581,1715556646564,-6489.63,0.00012899,2]
[326908582,1715556646573,-682.48,0.00012899,2]
[326908583,1715556646583,-6489.63,0.00012899,2]
[326908584,1715556646592,-682.48,0.00012899,2]
[326908585,1715556646602,-6489.63,0.00012899,2]
[326908586,1715556646611,-6489.63,0.00012899,2]
[326908587,1715556646620,-1350.93,0.00012899,2]
[326908588,1715556646629,-1350.93,0.00012899,2]
[326908589,1715556646638,-1350.93,0.00012899,2]
[326908590,1715556646647,-1350.93,0.00012899,2]
[326908591,1715556646656,-1350.93,0.00012899,2]
[326908592,1715556646665,-1350.93,0.00012899,2]
[326908593,1715556646675,-500.0,0.00012899,2]
[326908594,1715556646684,-500.0,0.00012899,2]
[326908595,1715556646693,-500.0,0.00012899,2]
[326908596,1715556646702,-151.0,0.00012899,2]
[326908597,1715556646711,-313.63410942,0.00012899,2]
[326908598,1715556646720,-151.0,0.00012899,2]
[326908599,1715556646729,-500.0,0.00012899,2]
[326908600,1715556646738,-1117.5,0.00012899,2]
[326908601,1715556646747,-151.0,0.00012899,2]
[326908602,1715556646756,-1117.5,0.00012899,2]
[326908603,1715556646765,-1117.5,0.00012899,2]
[326908604,1715556646774,-1117.5,0.00012899,2]
[326908605,1715556646783,-1117.5,0.00012899,2]
[326908606,1715556646792,-1117.5,0.00012899,2]
[326908607,1715556646801,-151.0,0.00012899,2]
[326908608,1715556646810,-1519.55,0.00012899,2]
[326908609,1715556646819,-1519.55,0.00012899,2]
[326908610,1715556646828,-1519.55,0.00012899,2]
[326908611,1715556646837,-1519.55,0.00012899,2]
[326908612,1715556646845,-1519.55,0.00012899,2]
[326908613,1715556646855,-1519.55,0.00012899,2]
[326908614,1715556646863,-235.99,0.00012899,2]
[326908615,1715556646872,-873.67,0.00012899,2]
[326908616,1715556646881,-873.67,0.00012899,2]
[326908617,1715556646890,-873.67,0.00012899,2]
[326908618,1715556646899,-873.67,0.00012899,2]
[326908619,1715556646910,-873.67,0.00012899,2]
[326908620,1715556646919,-873.67,0.00012899,2]
[326908621,1715556646929,-657.744543,0.00012899,2]
[326908622,1715556646938,-657.744543,0.00012899,2]
[326908623,1715556646947,-978.03,0.00012899,2]
[326908624,1715556646957,-978.03,0.00012899,2]
[326908625,1715556646967,-978.03,0.00012899,2]
[326908626,1715556646977,-978.03,0.00012899,2]
[326908627,1715556646986,-978.03,0.00012899,2]
[326908628,1715556646995,-978.03,0.00012899,2]
[326908629,1715556647005,-289.89851931,0.00012899,2]
[326908630,1715556647015,-151.0,0.00012899,2]
[326908631,1715556647025,-250.17556,0.00012899,2]
[326908632,1715556647036,-3406.45,0.00012899,2]
[326908633,1715556647047,-3406.45,0.00012899,2]
[326908634,1715556647059,-3406.45,0.00012899,2]
[326908635,1715556647071,-3406.45,0.00012899,2]
[326908636,1715556647083,-3406.45,0.00012899,2]
[326908637,1715556647096,-3646.65,0.00012899,2]
[326908638,1715556647107,-3406.45,0.00012899,2]
[326908639,1715556647118,-3646.65,0.00012899,2]
[326908640,1715556647129,-3646.65,0.00012899,2]
[326908641,1715556647140,-652.07303,0.00012899,2]
[326908642,1715556647150,-3646.65,0.00012899,2]
[326908643,1715556647160,-3646.65,0.00012899,2]
[326908644,1715556647170,-3646.65,0.00012899,2]
[326908645,1715556647180,-652.07303,0.00012899,2]
[326908646,1715556647193,-1414.93,0.00012899,2]
[326908647,1715556647206,-1414.93,0.00012899,2]
[326908648,1715556647217,-1414.93,0.00012899,2]
[326908649,1715556647228,-1414.93,0.00012899,2]
[326908650,1715556647240,-1414.93,0.00012899,2]
[326908651,1715556647252,-1414.93,0.00012899,2]
[326908652,1715556647263,-500.0,0.00012899,2]
[326908653,1715556647273,-500.0,0.00012899,2]
[326908654,1715556647284,-500.0,0.00012899,2]
[326908655,1715556647295,-500.0,0.00012899,2]
[326908656,1715556647307,-500.0,0.00012899,2]
[326908657,1715556647318,-151.0,0.00012899,2]
[326908658,1715556647328,-1723.26,0.00012899,2]
[326908659,1715556647338,-1723.26,0.00012899,2]
[326908660,1715556647348,-1723.26,0.00012899,2]
[326908661,1715556647359,-1723.26,0.00012899,2]
[326908662,1715556647370,-1723.26,0.00012899,2]
[326908663,1715556647381,-1723.26,0.00012899,2]
[326908664,1715556647392,-1050.582935,0.00012899,2]
[326908665,1715556647402,-1050.582935,0.00012899,2]
[326908666,1715556647413,-1027.801819,0.00012899,2]
[326908667,1715556647424,-240656.02971318,0.000129,2]
[326908668,1715556647440,-1078408.13343821,0.000129,2]
[326908669,1715556647450,-151.0,0.000129,2]
[326908670,1715556647460,-151.0,0.000129,2]
[326908671,1715556647471,-253.029793,0.000129,2]
[326908672,1715556647482,-257.581928,0.000129,2]
[326908673,1715556647492,-11382.68446828,0.000129,2]
[326908674,1715556647502,-166.19674,0.000129,2]
[326908675,1715556647514,-151.0,0.000129,2]
[326908676,1715556647524,-166.19674,0.000129,2]
[326908677,1715556647535,-151.0,0.000129,2]
[326908678,1715556647546,-11382.68446826,0.000129,2]
[326908679,1715556647556,-166.19674,0.000129,2]
[326908680,1715556647567,-166.19674,0.000129,2]
[326908681,1715556647577,-11382.68446826,0.000129,2]
[326908682,1715556647587,-151.0,0.000129,2]
[326908683,1715556647599,-151.0,0.000129,2]
[326908684,1715556647609,-151.0,0.000129,2]
[326908685,1715556647619,-151.0,0.000129,2]
[326908686,1715556647629,-11382.68446826,0.000129,2]
[326908687,1715556647640,-11382.68446826,0.000129,2]
[326908688,1715556647650,-161.661495,0.000129,2]
[326908689,1715556647660,-11382.68446826,0.000129,2]
[326908690,1715556647671,-151.0,0.000129,2]
[326908691,1715556647682,-231.20059,0.000129,2]
[326908692,1715556647691,-151.0,0.000129,2]
[326908693,1715556647702,-151.0,0.000129,2]
[326908694,1715556647713,-11382.68446826,0.000129,2]
[326908695,1715556647723,-151.0,0.000129,2]
[326908696,1715556647734,-151.0,0.000129,2]
[326908697,1715556647744,-11382.68446826,0.000129,2]
[326908698,1715556647755,-657.744543,0.000129,2]
[326908699,1715556647767,-657.744543,0.000129,2]
[326908700,1715556647778,-657.744543,0.000129,2]
[326908701,1715556647789,-657.744543,0.000129,2]
[326908702,1715556647801,-151.0,0.000129,2]
[326908703,1715556647813,-151.0,0.000129,2]
[326908704,1715556647824,-652.07303,0.000129,2]
[326908705,1715556647835,-652.07303,0.000129,2]
[326908706,1715556647846,-652.07303,0.000129,2]
[326908707,1715556647856,-652.07303,0.000129,2]
[326908708,1715556647868,-151.0,0.000129,2]
[326908709,1715556647878,-151.0,0.000129,2]
[326908710,1715556647889,-1050.582935,0.000129,2]
[326908711,1715556647899,-1050.582935,0.000129,2]
[326908712,1715556647908,-1050.582935,0.000129,2]
[326908713,1715556647919,-1050.582935,0.000129,2]
[326908714,1715556647929,-1550.0,0.0001296,7]
[326908715,1715556647940,-175.47369555,0.00012972,2]
[326908716,1715556647953,-158.57464964,0.00012972,2]
[326908717,1715556647963,-155.07331885,0.00012973,2]
[326908718,1715556647973,-155.12551674,0.00012973,2]
[326908719,1715556647983,-263.45763516,0.00012973,2]
[326908720,1715556647994,-500.0,0.00012977,2]
[326908721,1715556648006,-500.0,0.00012978,2]
[326908722,1715556648017,-1165.0,0.00012978,2]
[326908723,1715556648029,-799.33,0.00012978,2]
[326908724,1715556648039,-500.0,0.00012978,2]
[326908725,1715556648052,-766.01,0.00012978,2]
[326908726,1715556648063,-3324.78,0.00012978,2]
[326908727,1715556648074,-500.0,0.00012978,2]
[326908728,1715556648084,-363.12402172,0.00012978,2]
[326908729,1715556648093,-1308.92,0.00012978,2]
[326908730,1715556648104,-2859.23,0.00012978,2]
[326908731,1715556648115,-2859.23,0.00012978,2]
[326908732,1715556648125,-2859.23,0.00012978,2]
[326908733,1715556648136,-8143.21,0.00012978,2]
[326908734,1715556648146,-8143.21,0.00012978,2]
[326908735,1715556648155,-8143.21,0.00012978,2]
[326908736,1715556648167,-8898.22,0.00012978,2]
[326908737,1715556648178,-8898.22,0.00012978,2]
[326908738,1715556648188,-8898.22,0.00012978,2]
[326908739,1715556648198,-18922.25,0.00012978,2]
[326908740,1715556648208,-18922.25,0.00012978,2]
[326908741,1715556648218,-18922.25,0.00012978,2]
[326908742,1715556648229,-793.04,0.00012978,2]
[326908743,1715556648239,-793.04,0.00012978,2]
[326908744,1715556648248,-2240.21,0.00012978,2]
[326908745,1715556648258,-2240.21,0.00012978,2]
[326908746,1715556648268,-2240.21,0.00012978,2]
[326908747,1715556648279,-500.0,0.00012978,2]
[326908748,1715556648289,-323.98982557,0.00012978,2]
[326908749,1715556648299,-1151.92,0.00012978,2]
[326908750,1715556648310,-1151.92,0.00012978,2]
[326908751,1715556648320,-1151.92,0.00012978,2]
[326908752,1715556648331,-1164.35,0.00012978,2]
[326908753,1715556648341,-1164.35,0.00012978,2]
[326908754,1715556648351,-2790.33,0.00012978,2]
[326908755,1715556648362,-2790.33,0.00012978,2]
[326908756,1715556648372,-500.0,0.00012978,2]
[326908757,1715556648382,-271.53658641,0.00012978,2]
[326908758,1715556648393,-682.48,0.00012978,2]
[326908759,1715556648404,-682.48,0.00012978,2]
[326908760,1715556648414,-6489.63,0.00012978,2]
[326908761,1715556648426,-6489.63,0.00012978,2]
[326908762,1715556648441,-6489.63,0.00012978,2]
[326908763,1715556648452,-1350.93,0.00012978,2]
[326908764,1715556648462,-1350.93,0.00012978,2]
[326908765,1715556648472,-1117.5,0.00012978,2]
[326908766,1715556648483,-1117.5,0.00012978,2]
[326908767,1715556648493,-1519.55,0.00012978,2]
[326908768,1715556648505,-1519.55,0.00012978,2]
[326908769,1715556648515,-873.67,0.00012978,2]
[326908770,1715556648525,-873.67,0.00012978,2]
[326908771,1715556648535,-978.03,0.00012978,2]
[326908772,1715556648545,-978.03,0.00012978,2]
[326908773,1715556648556,-3406.45,0.00012978,2]
[326908774,1715556648566,-3406.45,0.00012978,2]
[326908775,1715556648576,-3646.65,0.00012978,2]
[326908776,1715556648586,-3646.65,0.00012978,2]
[326908777,1715556648597,-1414.93,0.00012978,2]
[326908778,1715556648608,-1414.93,0.00012978,2]
[326908779,1715556648618,-500.0,0.00012978,2]
[326908780,1715556648628,-500.0,0.00012978,2]
[326908781,1715556648638,-1723.26,0.00012978,2]
[326908782,1715556648648,-220.0,0.00012979,2]
[326908783,1715556648658,-220.0,0.00012979,2]
[326908784,1715556648668,-220.0,0.00012979,2]
[326908785,1715556648679,-220.0,0.00012979,2]
[326908786,1715556648690,-220.0,0.00012979,2]
[326908787,1715556648702,-220.0,0.00012979,2]
[326908788,1715556648712,-208.0,0.00012979,2]
[326908789,1715556648723,-208.0,0.00012979,2]
[326908790,1715556648733,-208.0,0.00012979,2]
[326908791,1715556648744,-208.0,0.00012979,2]
[326908792,1715556648756,-208.0,0.00012979,2]
[326908793,1715556648766,-208.0,0.00012979,2]
[326908794,1715556648778,-208.0,0.00012979,2]
[326908795,1715556648789,-500.0,0.00012979,2]
[326908796,1715556648799,-500.0,0.00012979,2]
[326908797,1715556648810,-500.0,0.00012979,2]
[326908798,1715556648820,-500.0,0.00012979,2]
[326908799,1715556648830,-500.0,0.00012979,2]
[326908800,1715556648840,-500.0,0.00012979,2]
[326908801,1715556648850,-409.4095605,0.00012979,2]
[326908802,1715556648861,-1165.0,0.00012979,2]
[326908803,1715556648871,-1165.0,0.00012979,2]
[326908804,1715556648881,-1165.0,0.00012979,2]
[326908805,1715556648891,-1165.0,0.00012979,2]
[326908806,1715556648901,-1165.0,0.00012979,2]
[326908807,1715556648911,-1165.0,0.00012979,2]
[326908808,1715556648921,-1165.05793479,0.00012979,2]
[326908809,1715556648931,-799.33,0.00012979,2]
[326908810,1715556648941,-799.33,0.00012979,2]
[326908811,1715556648951,-799.33,0.00012979,2]
[326908812,1715556648961,-799.33,0.00012979,2]
[326908813,1715556648971,-799.33,0.00012979,2]
[326908814,1715556648981,-799.33,0.00012979,2]
[326908815,1715556648991,-799.49858383,0.00012979,2]
[326908816,1715556649000,-500.0,0.00012979,2]
[326908817,1715556649010,-500.0,0.00012979,2]
[326908818,1715556649020,-500.0,0.00012979,2]
[326908819,1715556649031,-413.3678803,0.00012979,2]
[326908820,1715556649040,-766.01,0.00012979,2]
[326908821,1715556649050,-766.01,0.00012979,2]
[326908822,1715556649060,-766.01,0.00012979,2]
[326908823,1715556649070,-766.01,0.00012979,2]
[326908824,1715556649081,-766.01,0.00012979,2]
[326908825,1715556649091,-766.01,0.00012979,2]
[326908826,1715556649100,-766.09768694,0.00012979,2]
[326908827,1715556649110,-3324.78,0.00012979,2]
[326908828,1715556649119,-3324.78,0.00012979,2]
[326908829,1715556649129,-3324.78,0.00012979,2]
[326908830,1715556649138,-3324.78,0.00012979,2]
[326908831,1715556649148,-3324.78,0.00012979,2]
[326908832,1715556649157,-3324.78,0.00012979,2]
[326908833,1715556649167,-3324.83849968,0.00012979,2]
[326908834,1715556649176,-1308.92,0.00012979,2]
[326908835,1715556649186,-1308.92,0.00012979,2]
[326908836,1715556649195,-1308.92,0.00012979,2]
[326908837,1715556649205,-1308.92,0.00012979,2]
[326908838,1715556649215,-1308.92,0.00012979,2]
[326908839,1715556649224,-1308.92,0.00012979,2]
[326908840,1715556649235,-1308.92803341,0.00012979,2]
[326908841,1715556649244,-2859.23,0.00012979,2]
[326908842,1715556649254,-2859.23,0.00012979,2]
[326908843,1715556649263,-2859.23,0.00012979,2]
[326908844,1715556649273,-2859.23,0.00012979,2]
[326908845,1715556649283,-2859.23,0.00012979,2]
[326908846,1715556649293,-2859.44126552,0.00012979,2]
[326908847,1715556649302,-8143.21,0.00012979,2]
[326908848,1715556649312,-8143.21,0.00012979,2]
[326908849,1715556649322,-8143.21,0.00012979,2]
[326908850,1715556649331,-8143.21,0.00012979,2]
[326908851,1715556649341,-8143.21,0.00012979,2]
[326908852,1715556649351,-8143.41091801,0.00012979,2]
[326908853,1715556649362,-8898.22,0.00012979,2]
[326908854,1715556649372,-8898.22,0.00012979,2]
[326908855,1715556649382,-8898.22,0.00012979,2]
[326908856,1715556649394,-8898.22,0.00012979,2]
[326908857,1715556649405,-8898.22,0.00012979,2]
[326908858,1715556649415,-8898.44970206,0.00012979,2]
[326908859,1715556649425,-18922.25,0.00012979,2]
[326908860,1715556649441,-18922.25,0.00012979,2]
[326908861,1715556649451,-18922.25,0.00012979,2]
[326908862,1715556649461,-18922.25,0.00012979,2]
[326908863,1715556649472,-18922.25,0.00012979,2]
[326908864,1715556649483,-18922.42063238,0.00012979,2]
[326908865,1715556649494,-793.04,0.00012979,2]
[326908866,1715556649504,-793.04,0.00012979,2]
[326908867,1715556649518,-793.04,0.00012979,2]
[326908868,1715556649529,-793.04,0.00012979,2]
[326908869,1715556649539,-793.04,0.00012979,2]
[326908870,1715556649550,-793.04,0.00012979,2]
[326908871,1715556649560,-793.15163253,0.00012979,2]
[326908872,1715556649570,-2240.21,0.00012979,2]
[326908873,1715556649581,-2240.21,0.00012979,2]
[326908874,1715556649591,-2240.21,0.00012979,2]
[326908875,1715556649601,-2240.21,0.00012979,2]
[326908876,1715556649611,-2240.21,0.00012979,2]
[326908877,1715556649620,-2240.25,0.00012979,2]
[326908878,1715556649631,-500.0,0.00012979,2]
[326908879,1715556649642,-500.0,0.00012979,2]
[326908880,1715556649652,-500.0,0.00012979,2]
[326908881,1715556649662,-500.0,0.00012979,2]
[326908882,1715556649672,-500.0,0.00012979,2]
[326908883,1715556649683,-611.75257001,0.00012979,2]
[326908884,1715556649692,-1151.92,0.00012979,2]
[326908885,1715556649704,-1151.92,0.00012979,2]
[326908886,1715556649714,-1151.92,0.00012979,2]
[326908887,1715556649724,-1164.35,0.00012979,2]
[326908888,1715556649734,-1164.35,0.00012979,2]
[326908889,1715556649745,-1151.92,0.00012979,2]
[326908890,1715556649755,-1164.35,0.00012979,2]
[326908891,1715556649765,-1151.92,0.00012979,2]
[326908892,1715556649775,-1151.96476019,0.00012979,2]
[326908893,1715556649786,-1164.35,0.00012979,2]
[326908894,1715556649796,-1164.35,0.00012979,2]
[326908895,1715556649806,-1164.35,0.00012979,2]
[326908896,1715556649816,-1164.46155535,0.00012979,2]
[326908897,1715556649826,-2790.33,0.00012979,2]
[326908898,1715556649837,-166.19674,0.00012979,2]
[326908899,1715556649846,-2790.33,0.00012979,2]
[326908900,1715556649856,-2790.33,0.00012979,2]
[326908901,1715556649867,-233.927713,0.00012979,2]
[326908902,1715556649877,-2790.33,0.00012979,2]
[326908903,1715556649887,-2790.33,0.00012979,2]
[326908904,1715556649896,-2790.33,0.00012979,2]
[326908905,1715556649906,-2790.40860008,0.00012979,2]
[326908906,1715556649917,-166.19674,0.00012979,2]
[326908907,1715556649928,-151.0,0.00012979,2]
[326908908,1715556649941,-151.0,0.00012979,2]
[326908909,1715556649952,-682.48,0.00012979,2]
[326908910,1715556649962,-682.48,0.00012979,2]
[326908911,1715556649972,-682.48,0.00012979,2]
[326908912,1715556649983,-6489.63,0.00012979,2]
[326908913,1715556649993,-682.48,0.00012979,2]
[326908914,1715556650003,-6489.63,0.00012979,2]
[326908915,1715556650014,-682.48,0.00012979,2]
[326908916,1715556650025,-6489.63,0.00012979,2]
[326908917,1715556650037,-682.48,0.00012979,2]
[326908918,1715556650048,-6489.63,0.00012979,2]
[326908919,1715556650059,-682.4836842,0.00012979,2]
[326908920,1715556650069,-6489.63,0.00012979,2]
[326908921,1715556650080,-6489.69118627,0.00012979,2]
[326908922,1715556650090,-1350.93,0.00012979,2]
[326908923,1715556650100,-1350.93,0.00012979,2]
[326908924,1715556650110,-1350.93,0.00012979,2]
[326908925,1715556650120,-1350.93,0.00012979,2]
[326908926,1715556650130,-1350.93,0.00012979,2]
[326908927,1715556650141,-1350.93,0.00012979,2]
[326908928,1715556650151,-1351.1557564,0.00012979,2]
[326908929,1715556650161,-151.0,0.00012979,2]
[326908930,1715556650170,-1117.5,0.00012979,2]
[326908931,1715556650180,-1117.5,0.00012979,2]
[326908932,1715556650191,-1117.5,0.00012979,2]
[326908933,1715556650200,-1117.5,0.00012979,2]
[326908934,1715556650212,-1117.5,0.00012979,2]
[326908935,1715556650222,-1117.5,0.00012979,2]
[326908936,1715556650233,-1117.66118616,0.00012979,2]
[326908937,1715556650244,-151.0,0.00012979,2]
[326908938,1715556650254,-1519.55,0.00012979,2]
[326908939,1715556650265,-1519.55,0.00012979,2]
[326908940,1715556650276,-1519.55,0.00012979,2]
[326908941,1715556650287,-1519.55,0.00012979,2]
[326908942,1715556650298,-1519.55,0.00012979,2]
[326908943,1715556650309,-1519.55,0.00012979,2]
[326908944,1715556650319,-1519.77317521,0.00012979,2]
[326908945,1715556650329,-873.67,0.00012979,2]
[326908946,1715556650339,-873.67,0.00012979,2]
[326908947,1715556650771,-873.67,0.00012979,2]
[326908948,1715556650781,-873.67,0.00012979,2]
[326908949,1715556650791,-873.67,0.00012979,2]
[326908950,1715556650801,-873.67,0.00012979,2]
[326908951,1715556650811,-873.7909059,0.00012979,2]
[326908952,1715556650820,-657.744543,0.00012979,2]
[326908953,1715556650830,-657.744543,0.00012979,2]
[326908954,1715556650840,-978.03,0.00012979,2]
[326908955,1715556650850,-978.03,0.00012979,2]
[326908956,1715556650860,-978.03,0.00012979,2]
[326908957,1715556650870,-978.03,0.00012979,2]
[326908958,1715556650880,-978.03,0.00012979,2]
[326908959,1715556650890,-978.03,0.00012979,2]
[326908960,1715556650900,-978.0344184,0.00012979,2]
[326908961,1715556650909,-151.0,0.00012979,2]
[326908962,1715556650919,-3406.45,0.00012979,2]
[326908963,1715556650929,-3406.45,0.00012979,2]
[326908964,1715556650939,-3406.45,0.00012979,2]
[326908965,1715556650950,-3406.45,0.00012979,2]
[326908966,1715556650960,-3406.45,0.00012979,2]
[326908967,1715556650970,-3646.65,0.00012979,2]
[326908968,1715556650979,-652.07303,0.00012979,2]
[326908969,1715556650989,-3406.45,0.00012979,2]
[326908970,1715556650998,-3646.65,0.00012979,2]
[326908971,1715556651008,-3406.5551655,0.00012979,2]
[326908972,1715556651017,-3646.65,0.00012979,2]
[326908973,1715556651026,-3646.65,0.00012979,2]
[326908974,1715556651036,-3646.65,0.00012979,2]
[326908975,1715556651045,-3646.65,0.00012979,2]
[326908976,1715556651055,-3646.73630839,0.00012979,2]
[326908977,1715556651065,-652.07303,0.00012979,2]
[326908978,1715556651074,-1414.93,0.00012979,2]
[326908979,1715556651083,-1414.93,0.00012979,2]
[326908980,1715556651093,-1414.93,0.00012979,2]
[326908981,1715556651103,-1414.93,0.00012979,2]
[326908982,1715556651112,-1414.93,0.00012979,2]
[326908983,1715556651122,-1414.93,0.00012979,2]
[326908984,1715556651140,-1415.09326746,0.00012979,2]
[326908985,1715556651152,-500.0,0.00012979,2]
[326908986,1715556651163,-500.0,0.00012979,2]
[326908987,1715556651174,-500.0,0.00012979,2]
[326908988,1715556651185,-500.0,0.00012979,2]
[326908989,1715556651196,-500.0,0.00012979,2]
[326908990,1715556651207,-558.10512819,0.00012979,2]
[326908991,1715556651218,-151.0,0.00012979,2]
[326908992,1715556651229,-169.048884,0.00012979,2]
[326908993,1715556651239,-1723.26,0.00012979,2]
[326908994,1715556651249,-1723.26,0.00012979,2]
[326908995,1715556651259,-1723.26,0.00012979,2]
[326908996,1715556651270,-1723.26,0.00012979,2]
[326908997,1715556651280,-1050.582935,0.00012979,2]
[326908998,1715556651290,-1723.26,0.00012979,2]
[326908999,1715556651300,-1050.582935,0.00012979,2]
[326909000,1715556651311,-1723.26,0.00012979,2]
[326909001,1715556651321,-1723.28248328,0.00012979,2]
[326909002,1715556651331,-1050.582935,0.00012979,2]
[326909003,1715556651341,-1050.582935,0.00012979,2]
[326909004,1715556651351,-6963378.34067374,0.0001298,2]
[326909005,1715556651597,-1433.99062123,0.0001298,2]
[326909006,1715556651609,-446.56951862,0.0001298,2]
[326909007,1715556651627,-527.47882036,0.0001298,2]
[326909008,1715556651638,-1424.33460233,0.0001298,2]
[326909009,1715556651649,-278.13525569,0.0001298,2]
[326909010,1715556651661,-474.95316478,0.0001298,2]
[326909011,1715556651883,-313.29963832,0.0001288,2]
[326909012,1715556651893,-498.98036218,0.000129,2]
[326909013,1715556651920,-528.82145682,0.000129,2]
[326909014,1715556651930,-486.60562937,0.000129,2]
[326909015,1715556651958,-288.14436856,0.00012484,2]
[326909016,1715556652022,-127.03940847,0.00012484,2]
[326909017,1715556652031,-541.19618963,0.000129,2]
[326909018,1715556652041,-34.2834221,0.00012979,2]
[326909019,1715556652062,-993.5183969,0.00012979,2]
[326909020,1715556652071,-670.12581978,0.00012979,2]
[326909021,1715556652226,-761.05460391,0.00012899,2]
[326909022,1715556652238,-266.74721509,0.00012899,2]
[326909023,1715556652248,-1027.801819,0.000129,2]
[326909024,1715556652257,-1027.801819,0.000129,2]
[326909025,1715556652267,-357.67599922,0.00012979,2]
[326909026,1715556652276,-564.694168,0.00012979,2]
[326909027,1715556652289,-276.90558802,0.00012979,2]
[326909028,1715556652311,-186.20206298,0.00012979,2]
[326909029,1715556652321,-3078.02749559,0.0001298,2]
[326909030,1715556652333,-546.98906576,0.0001298,2]
[326909031,1715556652344,-489.70863098,0.0001298,2]
[326909032,1715556652356,-6640.65516025,0.0001298,2]
[326909033,1715556652368,-465.45006,0.0001298,2]
[326909034,1715556652397,-454.58727963,0.00012979,2]
[326909035,1715556652408,-500.0,0.00012979,2]
[326909041,1715557521537,-155.0,0.00011325,2]
[326909042,1715557521562,-14.81369,0.00011326,2]
[326909070,1715557831586,-333.0,0.00011024,3]
[326909071,1715557831599,-1667.0,0.00011024,3]
[326909072,1715557831610,-204.44716233,0.00011083,2]
[326909073,1715557831619,-2433.26,0.00011085,2]
[326909074,1715557831629,-169.44,0.00011087,2]
[326909075,1715557831638,-152.31,0.00011131,2]
[326909076,1715557831647,-4318.99622163,0.00011317,2]
[326909077,1715557831659,-7244.98197519,0.00011317,2]
[326909078,1715557831679,-363.76455997,0.00011317,2]
[326909079,1715557831692,-10887.46069429,0.00011317,2]
[326909080,1715557831702,-1834.0,0.00011318,2]
[326909081,1715557831713,-537.94793254,0.00011321,2]
[326909082,1715557831722,-232.86631,0.00011326,2]